Cogmind - Beta 14 @@@ ROGUE MODE // 2024.08.26 @ 20:36:48 Player: Ladmageddon Result: Destroyed by G-47 Trooper with Particle Gun Performance ------------- Evolutions (3) 1500 Regions Visited (7) 1400 Robots Destroyed (60) 300 Value Destroyed (2529) 2529 Prototype IDs (2) 40 Alien Tech Used (0) 0 Bonus (201) 201 TOTAL SCORE: 5970 Bonus ------- High Alert Combat Kills 101 Follower Combat Kills 100 Cogmind --------- Core Integrity 0/700 Matter 224/300 Energy 99/100 System Corruption 3% Temperature Cool (9) Movement Core (750) Ox14 Location -7/Lower Caves Parts ------- > --- POWER (1) -------- (None) > --- PROPULSION (4) --- (None) > --- UTILITY (5) ------ High-capacity Storage Unit > --- WEAPON (3) ------- Minigun > --- INVENTORY (20) --- Light Nuclear Core Light Nuclear Core VTOL Module Improved Heat Sink Advanced Heat Sink Launcher Guidance Computer Advanced ECM Suite Improved Light Armor Plating Component Analysis Suite Precision Shock Rifle Plasma Cannon Heavy Assault Rifle Assault Cannon Peak State ------------ > --- POWER ------------ Deuterium Engine > --- PROPULSION ------- Carbon-fiber Leg Carbon-fiber Leg Carbon-fiber Leg Carbon-fiber Leg > --- UTILITY ---------- Improved Heat Sink High-capacity Storage Unit Active Sensor Suite > --- WEAPON ----------- Advanced Beam Rifle Beamcaster Plasma Cannon > --- INVENTORY -------- Light Nuclear Core Light Nuclear Core Light Nuclear Core Carbon-fiber Leg Improved Heat Sink Advanced Heat Sink Launcher Guidance Computer Kinecellerator Microactuators Advanced ECM Suite Improved Medium Armor Plating Precision Shock Rifle Light Assault Rifle Heavy Assault Rifle Minigun High-powered Shotgun High-powered Shotgun Assault Cannon Grenade Launcher [Rating: 65] Favorites ----------- Power Deuterium Engine Engine Deuterium Engine Power Core Light Nuclear Core Propulsion Carbon-fiber Leg Treads Armored Treads Leg Carbon-fiber Leg Wheel Armored Wheel Utility High-capacity Storage Unit Device Improved Heat Sink Storage High-capacity Storage Unit Processor Improved Terrain Scan Processor Hackware Hacking Suite Protection Improved Light Armor Plating Weapon High-powered Shotgun Energy Gun Advanced Beam Rifle Energy Cannon Plasma Cannon Ballistic Gun High-powered Shotgun Launcher Grenade Launcher Special Weapon Remote Datajack Build | -11 -10 -10 -10 -9 -8 -7 -7 ------- Run | Yrd Mat Min Exi Min Mat Fac Low Slots Evolved 6 | . . . . . 4 2 . Power . | . . . . . . . . Propulsion 2 | . . . . . 1 1 . Utility 3 | . . . . . 2 1 . Weapon 1 | . . . . . 1 . . Parts Attached 73 | 8 4 4 1 3 25 16 12 Power 7 | 1 . 1 . 1 2 1 1 Engine 4 | 1 . 1 . . 2 . . Core 3 | . . . . 1 . 1 1 Reactor . | . . . . . . . . Propulsion 19 | 4 2 . . . 8 5 . Treads 6 | 2 . . . . 4 . . Leg 8 | . . . . . 3 5 . Wheel 5 | 2 2 . . . 1 . . Hover . | . . . . . . . . Flight . | . . . . . . . . Utility 21 | 1 1 2 1 . 6 6 4 Device 10 | . . . . . 3 4 3 Storage 4 | 1 1 . 1 . 1 . . Processor 1 | . . . . . 1 . . Hackware 1 | . . . . . . 1 . Protection 5 | . . 2 . . 1 1 1 Artifact . | . . . . . . . . Weapon 26 | 2 1 1 . 2 9 4 7 Energy Gun 3 | . . . . 1 1 1 . Energy Cannon 1 | . . . . . . 1 . Ballistic Gun 16 | 2 1 . . 1 6 2 4 Ballistic Cannon . | . . . . . . . . Launcher 4 | . . 1 . . 2 . 1 Special Weapon 2 | . . . . . . . 2 Impact Weapon . | . . . . . . . . Slashing Weapon . | . . . . . . . . Piercing Weapon . | . . . . . . . . Special Melee Weapon . | . . . . . . . . Unidentified Prototypes 2 | . . . . . 1 1 . Parts Lost 32 | . . . . . 8 6 18 Power 4 | . . . . . 2 . 2 Propulsion 6 | . . . . . . 3 3 Utility 10 | . . . . . 4 1 5 Weapon 12 | . . . . . 2 2 8 Highest Loss Streak 15 | . . . . . 3 2 15 To Critical Strikes . | . . . . . . . . Average Slot Usage (%) 82 | . 75 100 88 85 76 84 87 Engine 6 | . 1 14 14 12 6 5 . Core 1 | . . . . 1 1 1 6 Treads 2 | . . . . . 10 . . Leg 16 | . . . . . 10 28 21 Wheel 7 | . 28 28 28 28 5 . . Device 8 | . . . . . 4 14 16 Storage 9 | . 16 24 14 14 9 7 7 Protection 3 | . . 3 2 . 3 1 11 Energy Gun 6 | . . . . 6 2 12 . Energy Cannon 2 | . . . . . . 3 6 Ballistic Gun 12 | . 28 23 14 14 21 4 13 Launcher 1 | . . 4 14 7 . . . Peak Build Rating 65 | 6 9 13 13 15 55 65 49 Average Rating 37 | 4 7 11 11 12 28 57 40 On Entrance 19 | . 6 9 13 11 15 55 45 Naked Turns . | . . . . . . . . Heaviest Build 260 | 11 13 21 211 211 260 77 71 Greatest Support 63 | 40 26 24 24 24 60 63 63 Greatest Overweight (x) 17 | . . . 8 8 17 2 1 Average Overweight (x) 2 | . . . 4 8 4 1 1 Largest Inventory Capacity 35 | 8 8 8 35 35 35 20 20 Average Capacity 24 | 7 8 8 29 35 34 20 20 Most Carried 28 | 6 8 8 10 15 28 20 18 Average Carried 16 | 3 7 7 8 10 20 18 15 Final Capacity 35 | 8 8 8 35 35 20 20 20 Final Carried 18 | 4 8 8 10 15 18 18 13 Class Distribution -------------------- 32% | Skirmisher 20% | Hauler-Mutant 16% | Scavenger-Tank 11% | Mutant 9% | Hauler-Tank 8% | Hauler-Gunner Dominant Class ---------------- Mutant | -10/Materials Mutant | -10/Mines Hauler-Mutant | -10/Exiles Hauler-Mutant | -9/Mines Hauler-Tank | -8/Materials Skirmisher | -7/Factory Scavenger-Tank | -7/Lower Caves Resources | -11 -10 -10 -10 -9 -8 -7 -7 ----------- Run | Yrd Mat Min Exi Min Mat Fac Low Matter Collected 1967 | 225 30 65 . 140 981 409 117 Remotely . | . . . . . . . . Salvage Created 2387 | . 126 . . 92 1364 632 173 Parts 107 | . 7 . . 4 64 22 10 Haulers Intercepted . | . . . . . . . . Recyclers Shooed 2 | . . . . . 2 . . Parts Field Recycled . | . . . . . . . . Retrieved Matter . | . . . . . . . . Parts Self-Destructed 14 | . . . . . . . 14 Prevented . | . . . . . . . . Kills | -11 -10 -10 -10 -9 -8 -7 -7 ------- Run | Yrd Mat Min Exi Min Mat Fac Low Combat Hostiles Destroyed 51 | . 4 . . 2 30 10 5 Guns 43 | . 4 . . 2 29 4 4 Cannons 5 | . . . . . . 5 . AOE 2 | . . . . . 1 . 1 Classes Destroyed 11 | . 2 . . . 8 1 . Worker 5 | . . . . . 4 1 . Builder 1 | . . . . . 1 . . Recycler 1 | . . . . . 1 . . Mechanic 2 | . . . . . 1 1 . Swarmer 4 | . 2 . . . . . 2 Grunt 29 | . 2 . . 2 21 2 2 Duelist 1 | . . . . . 1 . . Sentry 10 | . . . . . 6 3 1 Hunter 4 | . . . . . 1 3 . Programmer 2 | . . . . . . 2 . Heavy 1 | . . . . . 1 . . Best Kill Streak 10 | . 2 . . 1 10 4 2 Combat Bots Only 8 | . 2 . . 1 8 2 2 Max Kills in Single Turn 3 | . 1 . . 1 2 3 1 Gunslinging . | . . . . . . . . Exploded 1 | . . . . . 1 . 1 Melee . | . . . . . . . . Uniques/NPCs Destroyed . | . . . . . . . . Combat | -11 -10 -10 -10 -9 -8 -7 -7 -------- Run | Yrd Mat Min Exi Min Mat Fac Low Hostile Shots Fired 514 | . 12 . . 15 200 130 157 Missed 140 | . 5 . . 3 52 46 34 Damage Taken 5796 | . 94 22 . 187 2452 1183 1858 Core 1097 | . . 2 . . 381 364 350 Absorbed by Shields . | . . . . . . . . Core Remaining (%) 76 | 100 . . . 99 30 . . Volleys Fired 181 | . 11 1 . 17 85 44 23 Largest 3 | . 2 1 . 2 3 3 3 Hottest 216 | . 40 20 . 85 125 216 169 Shots Fired 451 | . 22 1 . 20 239 126 43 Gun 400 | . 22 1 . 20 235 90 32 Cannon 44 | . . . . . . 36 8 Launcher 5 | . . . . . 4 . 1 Special 2 | . . . . . . . 2 Kinetic 308 | . 22 1 . 17 223 18 27 Thermal 137 | . . . . 3 12 108 14 Explosive 5 | . . . . . 4 . 1 Electromagnetic . | . . . . . . . . Robot Hit Streak 20 | . 5 2 . 11 20 5 6 Robot Miss Streak 9 | . 2 . . 3 8 9 5 Penetration Max 1 | . . . . . . 1 . Secondary Targets 4 | . 1 . . . 3 . . Max Gunslinging Chain 1 | . 1 . . . 1 . . Shots Hit Robots 281 | . 15 1 . 14 169 55 27 Core Hits 145 | . 8 . . 6 90 24 17 Critical Kills 1 | . . . . . 1 . . Critical Parts Destroyed 2 | . . . . . 2 . . Critical Strikes 9 | . . . . . 4 5 . Burn 6 | . . . . . 1 5 . Destroy 3 | . . . . . 3 . . Melee Attacks . | . . . . . . . . Impact . | . . . . . . . . Slashing . | . . . . . . . . Piercing . | . . . . . . . . Sneak Attacks . | . . . . . . . . Combat Hostiles . | . . . . . . . . Follow-up Attacks . | . . . . . . . . Damage Inflicted 5790 | . 164 12 . 123 3500 1333 658 Guns 4697 | . 164 8 . 123 3115 895 392 Cannons 473 | . . . . . . 395 78 Explosions 482 | . . . . . 305 . 177 Melee . | . . . . . . . . Ramming 127 | . . 4 . . 80 43 . Kinetic 3751 | . 164 8 . 106 2989 152 332 Thermal 1430 | . . . . 17 126 1138 149 Explosive 482 | . . . . . 305 . 177 Electromagnetic . | . . . . . . . . Impact . | . . . . . . . . Slashing . | . . . . . . . . Piercing . | . . . . . . . . Highest Corruption 3 | . . . . . . 3 3 Average Corruption 2 | . . . . . . 2 3 Corruption Purged . | . . . . . . . . Corruption Blocked . | . . . . . . . . Effects 36 | . . . . . . 23 13 Message Errors 6 | . . . . . . 4 2 Matter Fused 8 | . . . . . . 6 2 Heat Flow Errors 4 | . . . . . . 2 2 Energy Discharges 4 | . . . . . . 2 2 Parts Rejected 1 | . . . . . . . 1 Data Loss (minor) 4 | . . . . . . 2 2 Data Loss (major) 2 | . . . . . . 1 1 Misfires 2 | . . . . . . 2 . Alerts 3 | . . . . . . 3 . Weapon Failures 2 | . . . . . . 1 1 Overload Shots . | . . . . . . . . Overflow Damage 10 | . . . . . 1 . 9 Projectiles 7 | . . . . . . . 7 Explosions 2 | . . . . . . . 2 Melee 1 | . . . . . 1 . . Knockbacks . | . . . . . . . . Impact . | . . . . . . . . Kinetic . | . . . . . . . . Secondary . | . . . . . . . . Self-Inflicted Damage 41 | . . 2 . . . . 39 Shots 1 | . . . . . . . 1 Rammed 4 | . . 1 . . 3 . . Targets Rammed 14 | . . 1 . . 7 6 . Kicked 8 | . . . . . 2 6 . Crushed 2 | . . . . . 2 . . Highest Temperature 676 | . 22 1 . 127 233 676 351 Average Temperature 113 | . 10 1 . 34 48 159 136 Received Heat Transfer 1923 | . 63 . . 126 999 126 609 Effects 15 | . . . . . 1 14 . Shutdowns 3 | . . . . . . 3 . Energy Bleed 1 | . . . . . 1 . . Interference 3 | . . . . . . 3 . Matter Decay 3 | . . . . . . 3 . Short Circuit 1 | . . . . . . 1 . Damage (minor) 2 | . . . . . . 2 . Damage (core) 2 | . . . . . . 2 . Siege Activations . | . . . . . . . . Robots Corrupted 1 | . . . . . 1 . . Combat Hostiles . | . . . . . . . . Parts Fried 2 | . . . . . 2 . . Impact Corruptions 1 | . . . . . 1 . . Robots Melted 1 | . . . . . . 1 . Combat Hostiles 1 | . . . . . . 1 . Parts Melted 9 | . . . . . . 9 . Heat Transferred 3052 | . . . . 37 296 2378 341 Parts Sabotaged . | . . . . . . . . Parts Stolen . | . . . . . . . . Parts Stripped . | . . . . . . . . Power Chain Reactions . | . . . . . . . . Alert | -11 -10 -10 -10 -9 -8 -7 -7 ------- Run | Yrd Mat Min Exi Min Mat Fac Low Peak Influence 543 | . 105 40 . 167 543 314 . Initial 246 | . . 40 . . 61 246 . Average 183 | . 49 40 . 60 288 162 . Maximum Alert Level 2 | . . . . . 2 1 . Low Security (%) 56 | 100 100 100 . 100 38 52 . Level 1 28 | . . . . . 15 47 . Level 2 15 | . . . . . 46 . . Level 3 . | . . . . . . . . Level 4 . | . . . . . . . . Level 5 . | . . . . . . . . High Security . | . . . . . . . . Max Security . | . . . . . . . . Squads Dispatched 7 | . . . . . 3 4 . Investigation 2 | . . . . . . 2 . Extermination 2 | . . . . . . 2 . Reinforcement 3 | . . . . . 3 . . Assault . | . . . . . . . . Garrison . | . . . . . . . . Intercept . | . . . . . . . . Searches Triggered . | . . . . . . . . Construction Impeded . | . . . . . . . . Haulers Reinforced . | . . . . . . . . Active Scanning Responses 1 | . . . . . . 1 . Cargo Convoy Interrupts . | . . . . . . . . Stealth | -11 -10 -10 -10 -9 -8 -7 -7 --------- Run | Yrd Mat Min Exi Min Mat Fac Low Distress Signals 9 | . . . . . 8 1 . Communications Jammed . | . . . . . . . . Distress Signals . | . . . . . . . . Times Spotted 104 | . 5 4 . 7 54 21 13 Peak Tracking Total 9 | . 2 2 . 3 9 4 7 Tactical Retreats 13 | . 1 . . 2 5 . 5 Traps | -11 -10 -10 -10 -9 -8 -7 -7 ------- Run | Yrd Mat Min Exi Min Mat Fac Low Traps Triggered . | . . . . . . . . Indirectly . | . . . . . . . . Trap Hack Attempts . | . . . . . . . . Triggered . | . . . . . . . . Disarmed . | . . . . . . . . Reprogrammed . | . . . . . . . . Reused . | . . . . . . . . Traps Extracted . | . . . . . . . . Installed . | . . . . . . . . Triggered . | . . . . . . . . Machines | -11 -10 -10 -10 -9 -8 -7 -7 ---------- Run | Yrd Mat Min Exi Min Mat Fac Low Machines Disabled 12 | . . . . . 1 11 . Max in Single Turn 9 | . . . . . 1 9 . Machines Repaired . | . . . . . . . . Machines Dismantled . | . . . . . . . . Machines Sabotaged . | . . . . . . . . Overloaded Fab Kills . | . . . . . . . . Hacking | -11 -10 -10 -10 -9 -8 -7 -7 --------- Run | Yrd Mat Min Exi Min Mat Fac Low Machines Accessed 3 | . . . 1 . 1 1 . Terminals 1 | . . . . . 1 . . Fabricators . | . . . . . . . . Repair Stations . | . . . . . . . . Recycling Units 1 | . . . . . . 1 . Scanalyzers . | . . . . . . . . Garrison Access . | . . . . . . . . Total Hacks 29 | . . . 23 . 2 4 . Successful 26 | . . . 23 . 2 1 . Failed 3 | . . . . . . 3 . Catastrophic 1 | . . . . . . 1 . Database Lockouts . | . . . . . . . . Manual . | . . . . . . . . Terminals 2 | . . . . . 2 . . Fabricators . | . . . . . . . . Repair Stations . | . . . . . . . . Recycling Units 4 | . . . . . . 4 . Scanalyzers . | . . . . . . . . Garrison Access . | . . . . . . . . Terminal Hacks 25 | . . . 23 . 2 . . Record 25 | . . . 23 . 2 . . Fabricator Hacks . | . . . . . . . . Repair Station Hacks . | . . . . . . . . Recycling Unit Hacks 1 | . . . . . . 1 . Recycle Component 1 | . . . . . . 1 . Scanalyzer . | . . . . . . . . Garrison Access Hacks . | . . . . . . . . Unauthorized Hacks . | . . . . . . . . Terminals . | . . . . . . . . Fabricators . | . . . . . . . . Repair Stations . | . . . . . . . . Recycling Units . | . . . . . . . . Scanalyzers . | . . . . . . . . Garrison Access . | . . . . . . . . Data Cores Recovered . | . . . . . . . . Used . | . . . . . . . . Hacking Detections 2 | . . . . . 1 1 . Full Trace Events 1 | . . . . . . 1 . Feedback Events 1 | . . . . . . 1 . Corruption 1 | . . . . . . 1 . Feedback Blocked . | . . . . . . . . Robot Schematics Acquired . | . . . . . . . . Robots Built . | . . . . . . . . Authchips . | . . . . . . . . Time . | . . . . . . . . Total Robot Build Rating . | . . . . . . . . Part Schematics Acquired . | . . . . . . . . Parts Built . | . . . . . . . . Authchips . | . . . . . . . . Time . | . . . . . . . . Total Part Build Rating . | . . . . . . . . Parts Repaired . | . . . . . . . . Time . | . . . . . . . . Parts Recycled 1 | . . . . . . 1 . Recycled Matter . | . . . . . . . . Retrieved Matter . | . . . . . . . . Retrieved Components . | . . . . . . . . Parts Scanalyzed . | . . . . . . . . Part Schematics Acquired . | . . . . . . . . Parts Damaged . | . . . . . . . . Bothacking | -11 -10 -10 -10 -9 -8 -7 -7 ------------ Run | Yrd Mat Min Exi Min Mat Fac Low Used RIF Installer . | . . . . . . . . Robots Hacked 1 | . . . . . . . 1 Non-combat . | . . . . . . . . Combat 1 | . . . . . . . 1 Robot Hacks Applied 1 | . . . . . . . 1 parse_system 1 | . . . . . . . 1 Relay Couplers Released . | . . . . . . . . Fabnet Peak Effective % . | . . . . . . . . Robots Rewired . | . . . . . . . . Allies Hacked . | . . . . . . . . Hacks Repelled . | . . . . . . . . Allies | -11 -10 -10 -10 -9 -8 -7 -7 -------- Run | Yrd Mat Min Exi Min Mat Fac Low Total Allies 2 | . . . . 2 . . . Largest Group 2 | . . . . 2 . . . Highest-Rated Group 42 | . . . . 42 . . . Highest-Rated Ally 31 | . . . . 31 . . . Total Orders . | . . . . . . . . Ally Attacks 13 | . . . . 13 . . . Total Damage 165 | . . . . 165 . . . Kills 4 | . . . . 4 . . . Allies Corrupted . | . . . . . . . . Allies Melted . | . . . . . . . . Intel | -11 -10 -10 -10 -9 -8 -7 -7 ------- Run | Yrd Mat Min Exi Min Mat Fac Low Robot Analysis Total . | . . . . . . . . Derelict Logs Recovered 4 | . . 1 . 1 . . 2 Drone Launches . | . . . . . . . . Drone Recoveries . | . . . . . . . . Exploration | -11 -10 -10 -10 -9 -8 -7 -7 ------------- Run | Yrd Mat Min Exi Min Mat Fac Low Turns Passed 5091 | 64 202 127 343 370 1394 2076 515 Spaces Moved 2164 | 42 155 123 203 155 338 920 228 Core 10 | 10 . . . . . . . Treads 91 | 13 . . . . 78 . . Legs 1274 | . . . . . 126 920 228 Wheels 789 | 19 155 123 203 155 134 . . Hover . | . . . . . . . . Flight . | . . . . . . . . Fastest Speed 50 | 50 90 90 90 210 165 190 190 Average Speed 192 | 102 90 90 164 210 304 190 190 Slowest Speed 570 | 160 90 90 210 210 570 260 190 Overloaded Moves . | . . . . . . . . Propulsion Burnouts . | . . . . . . . . Robots Hopped . | . . . . . . . . Cave-ins Triggered . | . . . . . . . . Exploration Rate (%) 34 | 4 30 47 56 45 39 17 39 Regions Visited 7 Branch Regions 4 Pre-discovered Areas 1 | . . . 1 . . . . Known Exits Taken 2 | . . . 1 . 1 . . Unknown Exits Taken 5 | 1 1 1 . 1 . 1 . Scrap Searched 5 | . . . . 1 . . 4 Spaces Dug . | . . . . . . . . Terrain Destroyed 38 | . . . . . 36 . 2 Melee . | . . . . . . . . Projectile . | . . . . . . . . AOE 38 | . . . . . 36 . 2 Terrain Rammed . | . . . . . . . . Walls Destroyed . | . . . . . . . . Machines Disabled . | . . . . . . . . Actions | -11 -10 -10 -10 -9 -8 -7 -7 --------- Run | Yrd Mat Min Exi Min Mat Fac Low Total 2726 | 62 199 138 215 182 511 1146 273 Wait 183 | . 16 6 . 3 16 136 6 Move 2157 | 41 154 122 202 154 337 919 228 Hop . | . . . . . . . . Pick Up 85 | 11 8 2 8 5 30 17 4 Fast Attach 2 | 1 1 . . . . . . Attach 41 | 5 . 1 1 . 13 12 9 Detach . | . . . . . . . . Swap 30 | 2 3 3 . 3 12 4 3 Drop 33 | 2 6 2 4 . 11 8 . Fire 181 | . 11 1 . 17 85 44 23 Melee . | . . . . . . . . Ram 1 | . . 1 . . . . . Kick 8 | . . . . . 2 6 . Crush 5 | . . . . . 5 . . Escape Stasis . | . . . . . . . . Rewire . | . . . . . . . . Trap . | . . . . . . . . Miscellaneous . | . . . . . . . . Route ------- -11/Scrapyard -10/Materials -10/Mines (discovered 2 exits: [*Mat] / *Exi) -10/Exiles (discovered 2 exits: *Min x2) -9/Mines -8/Materials -7/Factory -7/Lower Caves History --------- Turn | Location | Event 7 | -11/Scrapyard | Discovered new exit (range 15) 65 | -11/Scrapyard | Entered Materials 204 | -10/Materials | Met 8R-AWN 254 | -10/Materials | Discovered new exit (range 15) 267 | -10/Materials | Entered Mines 268 | -10/Mines | Followed 8R-AWN into the Mines 307 | -10/Mines | Build established: Mutant 346 | -10/Mines | Assembled infested the area 358 | -10/Mines | Discovered new exit (range 14) 391 | -10/Mines | Discovered new exit (range 5) 394 | -10/Mines | Entered Exiles 395 | -10/Exiles | Identified exit to Mines 416 | -10/Exiles | Welcomed by 8R-AWN 431 | -10/Exiles | Met EX-HEX 526 | -10/Exiles | Met EX-DEC 579 | -10/Exiles | Learned location of Zion (-7) 737 | -10/Exiles | Entered Mines 754 | -9/Mines | Build established: Hauler-Mutant 763 | -9/Mines | Learned Materials interactive machine intel 1045 | -9/Mines | Discovered new exit (range 6) 1107 | -9/Mines | Entered Materials 1107 | -8/Materials | Evolved 4 slots: Propulsion x1, Utility x2, Weapon x1 1108 | -8/Materials | Loaded intel: 19 interactive machine locations 1379 | -8/Materials | Lost 3 parts (1p1u1w) 1400 | -8/Materials | Found Prototype Device 1725 | -8/Materials | Destroyed 8 combat bots 1875 | -8/Materials | Core integrity fell below 50% 2006 | -8/Materials | Build established: Hauler-Gunner 2329 | -8/Materials | Build established: Hauler-Mutant 2417 | -8/Materials | Identified Active Sensor Suite 2495 | -8/Materials | Discovered new exit (range 3) 2499 | -8/Materials | Identified exit to Factory 2501 | -8/Materials | Entered Factory 2501 | -7/Factory | Evolved 2 slots: Propulsion x1, Utility x1 2724 | -7/Factory | Build established: Skirmisher 4509 | -7/Factory | Build established: Scavenger-Tank 4520 | -7/Factory | Discovered new exit (range 10) 4540 | -7/Factory | Core integrity fell below 50% 4577 | -7/Factory | Entered Lower Caves 4595 | -7/Lower Caves | Attracted the attention of an 0b10 checkpoint 4601 | -7/Lower Caves | Learned Factory garrison access intel 4647 | -7/Lower Caves | Lost 3 parts (1p1u1w) 4771 | -7/Lower Caves | Encountered a Warlord checkpoint 4888 | -7/Lower Caves | Learned Factory security intel 5049 | -7/Lower Caves | Attracted the attention of an 0b10 base 5077 | -7/Lower Caves | Core integrity fell below 20% 5092 | -7/Lower Caves | Destroyed by G-47 Trooper with Particle Gun Last Messages --------------- Jacked G-47 Trooper... >>parse_system Reading system data... Imp. Carbon-fiber Leg destroyed. Recalibrator destroyed. Lgt. Nuclear Core fries itself beyond repair. Remote Datajack destroyed. System corrupted: Energy discharge (-49). Lgt. Nuclear Core fries itself beyond repair. Lgt. Assault Rifle destroyed. VTOL Module fries itself beyond repair. Lgt. Nuclear Core destroyed. Hpw. Shotgun destroyed. Critical hit (Burn: +37). G-47 Trooper destroyed. Critical hit (Burn: +37). G-47 Trooper destroyed. Flak Gun destroyed. Lgt. Nuclear Core fries itself beyond repair. Imp. Heat Sink destroyed. Map ----- +----------------------------------------------------+ | ?????????????????????????????????????????????????? | | ?????????????????????????????????????????????????? | | ?????????????????????????????????????????????????? | | ?????????????????????????????????????????????????? | | ?????????????????????????????????????????????????? | | ?????????????????????????????????????????????????? | | ??????????????????????###?????####???????????????? | | ??????????????????????# ##?### ####???######??## | | ??????????????????????# ### ##### #### | | ???????????????????????# | | ????????????????????????# | | ????????????????????????# | | ????????????????????????#### ## | | ???????????????????????????# ## ### | | ??????????????????????????## ## ### | | ?????????????????????????## ##### #### ## | | ?????????????????????????# ##??###? ### | | ???????????????????????### ####### ##?# | | ???????????????????????# # #?? | | ???????????????????????# ## #?# | | ???????????????????????# ########### ### ?# | | ?????????????????????### #"""" """"#????# ?## | | ??????????????????#### # """"#???? ##?# | | ??????????????????# # """"#???# ##??? | | ??????????????????# %s #???# ##???? | | ??????????????????# @%%[ +???? #?????? | | ??????????????????# % #????????????? | | ??????????????????## ## g# g "#????????????? | | ???????????????????###?# + T "#????????????? | | ???????????????????????# #"""""""""#????????????? | | ???????????????????????# ###########????????????? | | ???????????????????????# ??????????????????????? | | ???????????????????????# ?????????????????????? | | ???????????????????????## ?????????????????????? | | ????????????????????????? #????????????????????? | | ?????????????????????????####????????????????????? | | ?????????????????????????????????????????????????? | | ?????????????????????????????????????????????????? | | ?????????????????????????????????????????????????? | | ?????????????????????????????????????????????????? | | ?????????????????????????????????????????????????? | | ?????????????????????????????????????????????????? | | ?????????????????????????????????????????????????? | | ?????????????????????????????????????????????????? | | ?????????????????????????????????????????????????? | | ?????????????????????????????????????????????????? | | ?????????????????????????????????????????????????? | | ?????????????????????????????????????????????????? | | ?????????????????????????????????????????????????? | | ?????????????????????????????????????????????????? | +----------------------------------------------------+ Best States ------------- Heat Dissipation 48 Energy Generation 14 Energy Capacity 275 Matter Stores 300 Matter Capacity 300 Sight Range 16 Robot Scan Range 20 Terrain Scan Density 110 ECM Strength 2 Armor Coverage 375 Melee Speed Boost 20 Evasion (%) 50 Recoil Reduction 3 Kinecelleration 30 Offensive Hacking 10 Item Schematics ----------------- None Robot Schematics ------------------ None Fabricated ------------ Nothing Alien Tech Used ----------------- None Achievements -------------- I Spy Librarian Challenges ------------ None Game ------ Seed PulseAnalysisPenetrator Manual? 0 Play Time 00:41:10 Cumulative 9.1 hours Start 2024.08.26 @ 19:56:07 End 2024.08.26 @ 20:36:48 Sessions 1 Manual Loads 0 Difficulty Rogue Special Mode None Game No. 19 Rogue 16 Adventurer 3 Explorer 0 Win Type - Total 0 Types 0/0/0/0/0/0/0/0/0 Lore% 4 Gallery% 20 Achievement% 14 Wizard Run 0 Options --------- Layout 1 ASCII 0 Keyboard 0 Movement Mouse Keybinds 0 Fullscreen 1 Font 24/Smallcaps Map View 50x35 Zoom Use 0% Tactical HUD 0 Map Filters NONE Filters NONE Steam 1 RUN: e9178e38-5864-4474-95f3-32de1d28a94a